bitfinex/quotes_BTCUSD_20250127
["timestamp","ask_amount","ask_price","bid_price","bid_amount"]
[1737972171683,0.001976,99378.0,99377.0,0.43084]
[1737972172148,0.0004666,99378.0,99377.0,0.42984]
[1737972172577,0.0004666,99378.0,99377.0,0.43084]
[1737972172697,0.0004666,99378.0,99377.0,0.42784]
[1737972172904,0.0004666,99378.0,99377.0,0.42984]
[1737972173269,0.0004666,99378.0,99377.0,0.42684]
[1737972173564,0.0004666,99378.0,99377.0,0.42884]
[1737972173764,0.0004666,99378.0,99377.0,0.42984]
[1737972174565,0.0004666,99378.0,99377.0,0.42784]
[1737972174768,0.0004666,99378.0,99377.0,0.001]
[1737972175165,0.0004666,99378.0,99373.0,0.201261]
[1737972175371,0.0004666,99378.0,99377.0,0.001]
[1737972175812,0.0004666,99378.0,99377.0,0.003]
[1737972176014,0.0004666,99378.0,99371.0,0.201265]
[1737972176215,0.02017085,99378.0,99374.0,0.150944]
[1737972176854,0.02017085,99378.0,99371.0,0.201265]
[1737972176855,0.01917085,99378.0,99371.0,0.201265]
[1737972177116,0.01917085,99378.0,99377.0,0.003]
[1737972177291,0.01917085,99378.0,99377.0,0.001]
[1737972177292,0.0004666,99378.0,99377.0,0.001]
[1737972177652,0.0014666,99378.0,99377.0,0.001]
[1737972177854,0.24975189,99378.0,99377.0,0.001]
[1737972178281,0.24975189,99378.0,99370.0,0.00029736]
[1737972178282,0.150944,99375.0,99370.0,0.00029736]
[1737972178488,0.09734729,99374.0,99370.0,0.00029736]
[1737972178667,0.24829229,99374.0,99370.0,0.00029736]
[1737972178863,0.09734729,99374.0,99370.0,0.00029736]
[1737972179442,0.01916398,99378.0,99370.0,0.00029736]
[1737972179617,0.01916398,99378.0,99377.0,0.15094]
[1737972180027,0.01930558,99378.0,99377.0,0.15094]
[1737972181758,0.01930558,99378.0,99377.0,0.27414]
[1737972182169,0.0006082,99378.0,99377.0,0.27414]
[1737972186578,0.0006082,99378.0,99377.0,0.27514]
[1737972189142,0.0006082,99378.0,99377.0,0.1242]
[1737972189394,0.1515462,99378.0,99377.0,0.001]
[1737972189536,0.25910458,99378.0,99377.0,0.001]
[1737972189735,0.28210458,99378.0,99377.0,0.001]
[1737972190352,0.376849,99371.0,99370.0,0.00029736]
[1737972190553,0.49719629,99371.0,99370.0,0.00029736]
[1737972190751,0.54249629,99371.0,99370.0,0.00029736]
[1737972192154,0.39154729,99371.0,99370.0,0.00029736]
[1737972192367,0.54249629,99371.0,99370.0,0.00029736]
[1737972192548,0.150976,99353.0,99352.0,0.0007904]
[1737972192901,0.24832329,99353.0,99352.0,0.0007904]
[1737972193674,0.25132329,99353.0,99352.0,0.0007904]
[1737972194112,0.27005226,99353.0,99352.0,0.0007904]
[1737972194269,0.29305226,99353.0,99352.0,0.0007904]
[1737972194875,0.29405226,99353.0,99352.0,0.0007904]
[1737972195076,0.30415873,99353.0,99352.0,0.0007904]
[1737972195318,0.32453507,99353.0,99352.0,0.0007904]
[1737972196960,0.78908293,99353.0,99352.0,0.0007904]
[1737972200319,0.15,99348.0,99313.0,0.00029715]
[1737972200688,0.174017,99326.0,99313.0,0.00029715]
[1737972200895,0.27136429,99326.0,99325.0,0.00039735]
[1737972201327,0.29009326,99326.0,99325.0,0.00039735]
[1737972201591,0.13907626,99326.0,99325.0,0.00039735]
[1737972201759,0.04172897,99326.0,99325.0,0.00039735]
[1737972202193,0.01872897,99326.0,99325.0,0.00039735]
[1737972202431,0.02072897,99326.0,99325.0,0.00039735]
[1737972202631,0.002,99326.0,99325.0,0.00039735]
[1737972202834,0.01872897,99327.0,99325.0,0.00039735]
[1737972203243,0.01872897,99327.0,99326.0,0.151017]
[1737972203477,0.151,99338.0,99325.0,0.00039735]
[1737972203689,0.24834729,99338.0,99327.0,0.151015]
[1737972203911,0.023,99337.0,99325.0,0.00039735]
[1737972204322,0.151007,99333.0,99325.0,0.00039735]
[1737972204537,0.002,99327.0,99325.0,0.00039735]
[1737972204964,0.152017,99326.0,99325.0,0.00039735]
[1737972205213,0.24936429,99326.0,99325.0,0.00039735]
[1737972205429,0.24836429,99326.0,99325.0,0.00039735]
[1737972205636,0.29009326,99326.0,99325.0,0.00039735]
[1737972205850,0.30018734,99326.0,99325.0,0.00139735]
[1737972206303,0.30018734,99326.0,99325.0,0.00039735]
[1737972206957,0.29009326,99326.0,99325.0,0.00039735]
[1737972207171,0.31038839,99326.0,99325.0,0.00039735]
[1737972208186,0.34022634,99326.0,99325.0,0.00039735]
[1737972210318,0.29009326,99326.0,99325.0,0.00039735]
[1737972212118,0.51039115,99326.0,99325.0,0.00039735]
[1737972212537,0.44009326,99326.0,99325.0,0.00039735]
[1737972212785,0.46993937,99326.0,99325.0,0.00039735]
[1737972213211,0.50130974,99326.0,99325.0,0.00039735]
[1737972213856,0.46993937,99326.0,99325.0,0.00039735]
[1737972214090,0.47393937,99326.0,99325.0,0.00039735]
[1737972214307,0.50530974,99326.0,99325.0,0.00039735]
[1737972214512,0.50730974,99326.0,99325.0,0.00039735]
[1737972216023,0.8218576,99326.0,99325.0,0.00039735]
[1737972216248,0.79048723,99326.0,99325.0,0.00039735]
[1737972216458,0.46647023,99326.0,99325.0,0.00039735]
[1737972216684,0.61748723,99326.0,99325.0,0.00039735]
[1737972217333,0.63648723,99326.0,99325.0,0.00039735]
[1737972217538,0.48347023,99326.0,99325.0,0.00039735]
[1737972217759,0.36912294,99326.0,99325.0,0.00039735]
[1737972217968,0.36512294,99326.0,99325.0,0.00039735]
[1737972218173,0.53913994,99326.0,99325.0,0.00039735]
[1737972218379,0.38812294,99326.0,99325.0,0.00039735]
[1737972218593,0.54013994,99326.0,99325.0,0.00039735]
[1737972218796,0.49156486,99326.0,99325.0,0.00039735]
[1737972219215,0.51030923,99326.0,99325.0,0.00039735]
[1737972219630,0.60765652,99326.0,99325.0,0.00039735]
[1737972223575,0.58891215,99326.0,99325.0,0.00039735]
[1737972224579,0.64935215,99326.0,99325.0,0.00039735]
[1737972224778,0.58891215,99326.0,99325.0,0.00039735]
[1737972225621,0.60769743,99326.0,99325.0,0.00039735]
[1737972226792,0.75769743,99326.0,99325.0,0.00039735]
[1737972229952,0.33633314,99326.0,99325.0,0.00039735]
[1737972230289,0.003,99326.0,99325.0,0.22881635]
[1737972231270,0.002,99326.0,99325.0,0.22881635]
[1737972231448,0.15128636,99345.0,99332.0,0.151007]
[1737972231648,0.15128636,99345.0,99330.0,0.201348]
[1737972231649,0.023,99344.0,99330.0,0.201348]
[1737972231872,0.150992,99343.0,99331.0,0.15101]
[1737972232074,0.01879986,99343.0,99325.0,0.08079735]
[1737972232293,0.023,99342.0,99334.0,0.151005]
[1737972232697,0.023,99342.0,99325.0,0.07879735]
[1737972233021,0.023,99342.0,99332.0,0.151008]
[1737972234280,0.01879228,99341.0,99325.0,0.07779735]
[1737972234489,0.01879228,99341.0,99334.0,0.151005]
[1737972234839,0.023,99337.0,99325.0,0.27915535]
[1737972235051,0.023,99337.0,99326.0,0.201357]
[1737972235251,0.04179228,99340.0,99325.0,0.07779735]
[1737972235458,0.04179228,99340.0,99330.0,0.151011]
[1737972235674,0.04179228,99340.0,99331.0,0.151009]
[1737972236066,0.04179228,99340.0,99327.0,0.201355]
[1737972236271,0.04179228,99340.0,99333.0,0.151007]
[1737972236514,0.01879228,99339.0,99325.0,0.07779735]
[1737972236718,0.01879228,99339.0,99330.0,0.151011]
[1737972236958,0.16979028,99339.0,99330.0,0.151011]
[1737972237080,0.01879228,99339.0,99330.0,0.151011]
[1737972237283,0.01879228,99339.0,99325.0,0.07779735]
[1737972237284,0.01879228,99339.0,99332.0,0.151008]
[1737972237527,0.01879228,99339.0,99330.0,0.151011]
[1737972237727,0.01879228,99338.0,99328.0,0.201353]
[1737972237882,0.01879228,99338.0,99331.0,0.151009]
[1737972238761,0.01879228,99337.0,99332.0,0.151007]
[1737972238967,0.01879228,99337.0,99325.0,0.07779735]
[1737972239173,0.01879228,99337.0,99334.0,0.151005]
[1737972239803,0.01879228,99336.0,99326.0,0.151017]
[1737972240010,0.01879228,99336.0,99335.0,0.151004]
[1737972240674,0.01879228,99336.0,99327.0,0.201355]
[1737972240894,0.01879228,99336.0,99325.0,0.07779735]
[1737972241330,0.01879228,99336.0,99328.0,0.151013]
[1737972241480,0.02179228,99336.0,99329.0,0.151012]
[1737972241691,0.01879228,99335.0,99329.0,0.151012]
[1737972242125,0.023,99334.0,99326.0,0.151017]
[1737972242279,0.023,99334.0,99325.0,0.07979735]
[1737972242280,0.023,99334.0,99329.0,0.151012]
[1737972242479,0.023,99334.0,99325.0,0.07779735]
[1737972242675,0.023,99332.0,99325.0,0.07779735]
[1737972242981,0.023,99330.0,99325.0,0.00039735]
[1737972243182,0.023,99330.0,99325.0,0.15141635]
[1737972243607,0.01879228,99333.0,99325.0,0.00039735]
[1737972243608,0.023,99332.0,99325.0,0.00039735]
[1737972243765,0.01879228,99329.0,99325.0,0.00139735]
[1737972244182,0.01879228,99329.0,99328.0,0.301014]
[1737972244388,0.0001416,99370.0,99344.0,0.15099]
[1737972244625,0.150985,99348.0,99333.0,0.201342]
[1737972244829,0.150985,99348.0,99329.0,0.15]
[1737972244830,0.023,99347.0,99329.0,0.351349]
[1737972244981,0.023,99352.0,99329.0,0.15]
[1737972245188,0.15098,99351.0,99342.0,0.150993]
[1737972245396,0.150992,99343.0,99333.0,0.151006]
[1737972245584,0.023,99336.0,99328.0,0.08]
[1737972246237,0.023,99341.0,99328.0,0.08]
[1737972246527,0.001,99329.0,99328.0,0.231014]
[1737972246983,0.01874393,99335.0,99334.0,0.151005]
[1737972248352,0.01874393,99335.0,99334.0,0.52995229]
[1737972248590,0.01874393,99335.0,99334.0,0.5398651]
[1737972248591,0.02074393,99335.0,99334.0,0.5398651]
[1737972248793,0.002,99335.0,99334.0,0.5398651]
[1737972249368,0.0001416,99370.0,99344.0,0.22999]
[1737972249546,0.0001416,99370.0,99344.0,0.32733729]
[1737972249738,0.0001416,99370.0,99344.0,0.37643729]
[1737972250520,0.150955,99368.0,99344.0,0.37643729]
[1737972250820,0.150953,99369.0,99344.0,0.37643729]
[1737972251247,0.150953,99369.0,99344.0,0.37743729]
[1737972251452,0.023,99367.0,99344.0,0.37743729]
[1737972251629,0.201287,99361.0,99344.0,0.28409]
[1737972251833,0.150973,99356.0,99344.0,0.28409]
[1737972252064,0.023,99357.0,99344.0,0.28009]
[1737972252265,0.023,99365.0,99344.0,0.28209]
[1737972252469,0.01003245,99360.0,99344.0,0.28209]
[1737972252644,0.01003245,99360.0,99344.0,0.27909]
[1737972252855,0.023,99359.0,99344.0,0.28109]
[1737972253281,0.150983,99349.0,99344.0,0.001]
[1737972253483,0.023,99354.0,99344.0,0.001]
[1737972253687,0.02329736,99345.0,99344.0,0.001]
[1737972253835,0.00029736,99345.0,99344.0,0.001]
[1737972254317,0.02329736,99345.0,99337.0,0.0771]
[1737972254704,0.02329736,99345.0,99330.0,0.151011]
[1737972254705,0.150995,99341.0,99330.0,0.151011]
[1737972254906,0.201324,99342.0,99329.0,0.0799]
[1737972255047,0.201322,99343.0,99325.0,0.00039735]
[1737972255248,0.023,99341.0,99325.0,0.00039735]
[1737972255460,0.01014353,99345.0,99326.0,0.00100668]
[1737972255666,0.023,99344.0,99337.0,0.003]
[1737972256073,0.023,99344.0,99337.0,0.001]
[1737972256303,0.001,99341.0,99337.0,0.001]
[1737972256529,0.001,99341.0,99329.0,0.151012]
[1737972256766,0.001,99341.0,99325.0,0.20875535]
[1737972256973,0.001,99341.0,99325.0,0.00739735]
[1737972257180,0.001,99341.0,99337.0,0.151]
[1737972257385,0.001,99341.0,99326.0,0.151017]
[1737972257592,0.023,99344.0,99329.0,0.201351]
[1737972257794,0.023,99344.0,99325.0,0.00039735]
[1737972257795,0.01014353,99345.0,99330.0,0.09835392]
[1737972258044,0.00029736,99345.0,99344.0,0.23269]
[1737972259196,0.00029736,99345.0,99344.0,0.23569]
[1737972259784,0.00029736,99345.0,99344.0,0.0847]
[1737972260192,0.00029736,99345.0,99344.0,0.004]
[1737972261103,0.15128536,99345.0,99344.0,0.004]
[1737972261302,0.00029736,99345.0,99344.0,0.004]
[1737972261502,0.15128536,99345.0,99344.0,0.0011416]
[1737972261704,0.15128536,99345.0,99344.0,0.0021416]
[1737972261909,0.17428536,99345.0,99344.0,0.0011416]
[1737972262193,0.19306297,99345.0,99344.0,0.0001416]
[1737972262392,0.19306297,99345.0,99344.0,0.0011416]
[1737972262771,0.20323695,99345.0,99344.0,0.0011416]
[1737972263992,0.20323695,99345.0,99344.0,0.0001416]
[1737972264383,0.30058424,99345.0,99344.0,0.0001416]
[1737972264593,0.201322,99343.0,99325.0,0.20175435]
[1737972264794,0.023,99339.0,99329.0,0.151012]
[1737972265029,0.023,99341.0,99325.0,0.20175435]
[1737972265219,0.150997,99340.0,99329.0,0.151011]
[1737972265351,0.01877761,99338.0,99329.0,0.151011]
[1737972265571,0.023,99337.0,99327.0,0.151016]
[1737972265795,0.023,99337.0,99325.0,0.20275435]
[1737972265993,0.151017,99326.0,99325.0,0.00139735]
[1737972266196,0.42136429,99326.0,99325.0,0.00139735]
[1737972266393,0.324019,99325.0,99324.0,1e-08]
[1737972266620,0.384473,99316.0,99315.0,0.00029715]
[1737972266838,0.56154089,99316.0,99315.0,0.00044515]
[1737972267052,0.48182029,99316.0,99315.0,0.00044515]
[1737972267195,0.361476,99314.0,99310.0,0.00029736]
[1737972267392,0.48182329,99314.0,99313.0,1e-08]
[1737972267812,0.36148,99311.0,99310.0,0.00025737]
[1737972268030,0.51320263,99311.0,99310.0,3.999e-05]
[1737972269476,0.52420263,99311.0,99310.0,0.00103999]
[1737972269697,0.45576263,99311.0,99310.0,3.999e-05]
[1737972269848,0.42438729,99311.0,99310.0,3.999e-05]
[1737972271044,0.74693515,99311.0,99310.0,0.00103999]
[1737972271863,0.83623692,99311.0,99310.0,0.00103999]
[1737972272830,0.83623692,99311.0,99292.0,0.00029736]
[1737972272831,0.301068,99293.0,99292.0,0.00029736]
[1737972273039,1.59096315,99293.0,99292.0,0.00029736]
[1737972274283,1.62007436,99293.0,99292.0,0.00029736]
[1737972274511,1.62307436,99293.0,99292.0,0.00029736]
[1737972274729,1.62007436,99293.0,99292.0,0.00029736]
[1737972274938,1.62107436,99293.0,99292.0,0.00029736]
[1737972275144,1.62607436,99293.0,99292.0,0.00029736]
[1737972275347,1.59696315,99293.0,99292.0,0.00029736]
[1737972275557,1.59596315,99293.0,99292.0,0.00029736]
[1737972275770,1.57296315,99293.0,99292.0,0.00029736]
[1737972275972,1.58293321,99293.0,99292.0,0.00029736]
[1737972276378,1.60793321,99293.0,99292.0,0.00029736]
[1737972276877,1.62763507,99293.0,99292.0,0.00029736]
[1737972278557,2.16173507,99293.0,99292.0,0.00029736]
[1737972282624,2.16173507,99293.0,99292.0,1e-08]
[1737972282827,0.15109,99278.0,99252.0,0.00029757]
[1737972283024,0.39843729,99278.0,99277.0,0.00044557]
[1737972283210,0.39843729,99278.0,99277.0,5.7e-07]
[1737972283211,0.74598515,99278.0,99277.0,5.7e-07]
[1737972283430,0.86333244,99278.0,99277.0,5.7e-07]
[1737972284450,0.301128,99253.0,99252.0,0.00029757]
[1737972284750,2.21172315,99253.0,99252.0,1e-08]
[1737972284938,0.301141,99245.0,99244.0,0.00010171]
[1737972285112,0.42148829,99245.0,99244.0,0.00059573]
[1737972285317,0.44177888,99245.0,99244.0,0.00059573]
[1737972286873,0.45177911,99245.0,99244.0,0.00059573]
[1737972287437,0.5491264,99245.0,99244.0,0.00059573]
[1737972287640,0.86767426,99245.0,99244.0,0.00059573]
[1737972287843,0.86967426,99245.0,99244.0,0.00059573]
[1737972288024,0.77232697,99245.0,99244.0,0.00059573]
[1737972288430,0.76632697,99245.0,99244.0,0.00059573]
[1737972288671,0.76932697,99245.0,99244.0,0.00059573]
[1737972288924,0.77632697,99245.0,99244.0,0.00059573]
[1737972289225,0.79491381,99245.0,99244.0,0.00059573]
[1737972289804,0.85535381,99245.0,99244.0,0.00059573]
[1737972290357,0.93565381,99245.0,99244.0,0.00059573]
[1737972291528,1.0330011,99245.0,99244.0,0.00059573]
[1737972291732,0.93565381,99245.0,99244.0,0.00059573]
[1737972292142,0.85535381,99245.0,99244.0,0.00059573]
[1737972293242,0.62191381,99245.0,99244.0,0.00059573]
[1737972293359,0.77191381,99245.0,99244.0,0.00059573]
[1737972293587,0.62191381,99245.0,99244.0,0.00059573]
[1737972294017,0.77191381,99245.0,99244.0,0.00059573]
[1737972294358,0.76891381,99245.0,99244.0,0.00059573]
[1737972294492,0.76891381,99245.0,99233.0,0.0792]
[1737972294493,0.151157,99234.0,99233.0,0.07479573]
[1737972294694,0.24850429,99234.0,99233.0,0.07479573]
[1737972294923,0.26709113,99234.0,99233.0,0.07479573]
[1737972295129,0.11593413,99234.0,99219.0,0.0475]
[1737972295328,0.15117,99226.0,99219.0,0.0475]
[1737972295526,0.24851729,99226.0,99219.0,0.0475]
[1737972295994,0.26710413,99226.0,99219.0,0.0475]
[1737972296613,0.11593413,99226.0,99219.0,0.0475]
[1737972297028,0.01858684,99226.0,99219.0,0.0475]
[1737972297492,0.01858684,99226.0,99225.0,0.0791417]
[1737972298311,0.01858684,99226.0,99225.0,0.0811417]
[1737972298938,0.01858684,99226.0,99225.0,0.0791417]
[1737972299155,0.01858684,99226.0,99225.0,0.0811417]
[1737972299573,0.16975684,99226.0,99225.0,0.0811417]
[1737972300204,0.01858684,99226.0,99225.0,0.0811417]
[1737972300415,0.01858684,99226.0,99225.0,0.0791417]
[1737972300640,0.01858684,99226.0,99225.0,0.2303127]
[1737972301318,0.01858684,99226.0,99225.0,0.2768127]
[1737972301524,0.0004918,99245.0,99232.0,0.15116]
[1737972301733,0.0004918,99245.0,99244.0,0.231342]
[1737972301951,0.0004918,99245.0,99244.0,0.0802]
[1737972302159,0.0004918,99245.0,99244.0,0.231342]
[1737972303232,0.0004918,99245.0,99244.0,0.278742]
[1737972303889,0.31400235,99265.0,99252.0,0.15113]
[1737972304076,0.31400235,99265.0,99245.0,0.20152]
[1737972304077,0.09734729,99264.0,99251.0,0.15113]
[1737972304285,0.09734729,99264.0,99245.0,0.20166811]
[1737972304501,0.09734729,99264.0,99250.0,0.151133]
[1737972304650,0.09734729,99264.0,99248.0,0.201515]
[1737972304860,0.09734729,99264.0,99246.0,0.201519]
[1737972305273,0.09734729,99264.0,99255.0,0.151124]
[1737972305473,0.09734729,99264.0,99252.0,0.151129]
[1737972305675,0.09834729,99264.0,99249.0,0.151134]
[1737972305884,0.10134729,99264.0,99250.0,0.151132]
[1737972306305,0.10134729,99264.0,99247.0,0.0804]
[1737972306524,0.09834729,99264.0,99247.0,0.0804]
[1737972306898,0.09834729,99264.0,99252.0,0.151129]
[1737972307110,0.09834729,99264.0,99253.0,0.151128]
[1737972307309,0.09834729,99264.0,99247.0,0.0804]
[1737972307517,0.09834729,99264.0,99250.0,0.151132]
[1737972307690,0.09734729,99264.0,99251.0,0.151131]
[1737972307887,0.09834729,99264.0,99251.0,0.151131]
[1737972308308,0.10034729,99264.0,99251.0,0.151131]
[1737972308517,0.09934729,99264.0,99251.0,0.151131]
[1737972308830,0.09834729,99264.0,99251.0,0.151131]
[1737972309033,0.10034729,99264.0,99251.0,0.151131]
[1737972309230,0.09934729,99264.0,99251.0,0.151131]
[1737972309566,0.10064508,99264.0,99251.0,0.151131]
[1737972310564,0.10064508,99264.0,99247.0,0.0804]
[1737972310772,0.151134,99250.0,99245.0,0.00014811]
[1737972310977,0.151137,99248.0,99245.0,0.00014811]
[1737972311189,0.09734729,99250.0,99245.0,0.00014811]
[1737972311419,0.151138,99247.0,99245.0,0.00014811]
[1737972311620,0.44999229,99250.0,99245.0,0.00014811]
[1737972311825,0.09734729,99250.0,99245.0,0.00014811]
[1737972312035,0.20178179,99264.0,99253.0,0.151127]
[1737972312036,0.00129779,99264.0,99253.0,0.151127]
[1737972312243,0.00129779,99264.0,99263.0,0.151113]
[1737972312471,0.00029779,99264.0,99263.0,0.228513]
[1737972312889,0.00029779,99264.0,99263.0,0.274713]
[1737972313091,0.00029779,99264.0,99263.0,0.52206029]
[1737972313292,0.00029779,99264.0,99263.0,0.53217319]
[1737972313488,0.08930177,99288.0,99287.0,0.151077]
[1737972313693,0.08910177,99288.0,99287.0,0.151077]
[1737972315120,0.0892493,99288.0,99287.0,0.151077]
[1737972315565,0.0892493,99288.0,99287.0,0.152077]
[1737972315771,0.0892493,99288.0,99287.0,0.001]
[1737972316328,0.33767159,99288.0,99287.0,0.002]
[1737972316536,0.151083,99283.0,99276.0,0.0774]
[1737972316793,0.09734729,99283.0,99276.0,0.0774]
[1737972316992,0.09734729,99283.0,99261.0,0.201487]
[1737972316993,0.09734729,99283.0,99267.0,0.08]
[1737972317195,0.09734729,99283.0,99267.0,0.281476]
[1737972317403,0.24843029,99283.0,99271.0,0.151101]
[1737972317551,0.09734729,99283.0,99267.0,0.08]
[1737972317768,0.09734729,99283.0,99273.0,0.151097]
[1737972318161,0.09734729,99283.0,99272.0,0.151099]
[1737972318446,0.09734729,99283.0,99270.0,0.151102]
[1737972318654,0.15109,99279.0,99267.0,0.08]
[1737972319078,0.09734729,99283.0,99267.0,0.08]
[1737972319293,0.151088,99280.0,99267.0,0.08]
[1737972319499,0.151084,99282.0,99270.0,0.151102]
[1737972319698,0.09734729,99283.0,99267.0,0.08]
[1737972319934,0.151086,99281.0,99268.0,0.151105]
[1737972320138,0.09734729,99283.0,99271.0,0.151101]
[1737972320342,0.24843029,99283.0,99271.0,0.151101]
[1737972320523,0.151084,99282.0,99270.0,0.151102]
[1737972320728,0.1697713,99282.0,99270.0,0.151102]
[1737972320936,0.0186873,99282.0,99269.0,0.201472]
[1737972321146,0.0186873,99282.0,99273.0,0.151097]
[1737972321768,0.151085,99282.0,99268.0,0.151104]
[1737972321973,0.09734729,99283.0,99267.0,0.0801417]
[1737972322190,0.31400235,99287.0,99286.0,0.151078]
[1737972322391,0.31400235,99287.0,99286.0,0.277078]
[1737972323011,0.00014753,99288.0,99287.0,0.151077]
[1737972323636,0.00014753,99288.0,99287.0,0.39943127]
[1737972323850,0.31359343,99340.0,99290.0,0.01]
[1737972324070,0.31359343,99340.0,99310.0,0.426042]
[1737972324277,0.31359343,99340.0,99310.0,0.52338929]
[1737972324486,0.31359343,99361.0,99316.0,0.01]
[1737972324698,0.31359343,99361.0,99344.0,0.22709]
[1737972324907,0.02010659,99360.0,99344.0,0.22709]
[1737972325110,0.00079089,99345.0,99344.0,0.32443729]
[1737972325319,0.00079089,99345.0,99344.0,0.34977118]
[1737972325524,0.00079089,99345.0,99344.0,0.32443729]
[1737972326514,0.00079089,99345.0,99344.0,0.32543729]
[1737972327276,0.00079089,99345.0,99344.0,0.32643729]
[1737972327742,0.00079089,99345.0,99344.0,0.32543729]
[1737972327953,0.00079089,99345.0,99344.0,0.47543729]
[1737972328152,0.00079089,99345.0,99344.0,0.47643729]
[1737972329136,0.00029779,99364.0,99347.0,0.310985]
[1737972329321,7.3e-07,99348.0,99347.0,0.51003229]
[1737972330641,0.00100073,99348.0,99347.0,0.51803229]
[1737972331135,0.00100073,99348.0,99347.0,0.53858571]
[1737972331356,7.3e-07,99348.0,99347.0,0.58686877]
[1737972331549,0.00029779,99364.0,99347.0,0.58686877]
[1737972331550,0.00029779,99364.0,99351.0,0.406479]
[1737972331756,0.00029779,99364.0,99351.0,0.94614129]
[1737972331972,0.00029779,99364.0,99351.0,0.95614129]
[1737972332170,0.00029779,99364.0,99351.0,0.94614129]
[1737972332373,0.00029779,99364.0,99351.0,0.50382629]
[1737972332575,0.00029779,99364.0,99351.0,0.48382629]
[1737972332786,0.00029779,99364.0,99351.0,0.48782629]
[1737972333019,0.00129758,99352.0,99351.0,0.49582629]
[1737972333194,0.00129758,99352.0,99351.0,0.49182629]
[1737972333401,0.00029758,99352.0,99351.0,0.48382629]
[1737972333597,0.00029758,99352.0,99351.0,0.50782629]
[1737972333773,0.00129758,99352.0,99351.0,0.51582629]
[1737972334161,0.00129758,99352.0,99351.0,0.52762629]
[1737972334784,0.00129758,99352.0,99351.0,0.52362629]
[1737972334990,0.00029758,99352.0,99351.0,0.51562629]
[1737972335158,0.00029758,99352.0,99351.0,0.51962629]
[1737972335390,0.00129758,99352.0,99351.0,0.52762629]
[1737972335599,0.00029758,99352.0,99351.0,0.51562629]
[1737972335805,0.00029758,99352.0,99351.0,0.51962629]
[1737972336011,0.00129758,99352.0,99351.0,0.52762629]
[1737972336419,0.00129758,99352.0,99351.0,0.52362629]
[1737972336873,0.00029758,99352.0,99351.0,0.48962629]
[1737972337074,0.00029758,99352.0,99351.0,0.50962629]
[1737972337623,0.00029758,99352.0,99351.0,1.29156129]
[1737972337826,0.00029758,99352.0,99351.0,0.84327029]
[1737972338040,0.00029779,99364.0,99363.0,0.377461]
[1737972338249,0.0001416,99383.0,99369.0,0.356352]
[1737972338454,6e-07,99370.0,99369.0,0.92359629]
[1737972338731,8e-07,99378.0,99377.0,0.30094]
[1737972339015,8e-07,99378.0,99377.0,0.49448729]
[1737972339267,0.00014865,99378.0,99377.0,0.49448729]
[1737972339480,6.5e-07,99378.0,99377.0,0.50448729]
[1737972340113,6.5e-07,99378.0,99377.0,0.52748729]
[1737972340298,6.5e-07,99378.0,99377.0,0.53248729]
[1737972340498,6.5e-07,99378.0,99377.0,0.56264308]
[1737972341426,6.5e-07,99378.0,99377.0,0.56464308]
[1737972341645,6.5e-07,99378.0,99377.0,0.53164308]
[1737972341839,6.5e-07,99378.0,99377.0,0.54164308]
[1737972342260,6.5e-07,99378.0,99377.0,0.52164308]
[1737972342464,6.5e-07,99378.0,99377.0,0.51164308]
[1737972342670,6.5e-07,99378.0,99377.0,0.53164308]
[1737972344913,6.5e-07,99378.0,99377.0,0.51164308]
[1737972345124,6.5e-07,99378.0,99377.0,0.52336308]
[1737972345335,6.5e-07,99378.0,99377.0,0.54336308]
[1737972345549,6.5e-07,99378.0,99377.0,0.52336308]
[1737972345670,6.5e-07,99378.0,99377.0,0.51164308]
[1737972346571,0.00014215,99378.0,99377.0,0.51164308]
[1737972347257,0.00014215,99378.0,99377.0,0.49159753]
[1737972347427,0.00014215,99378.0,99377.0,0.15794]
[1737972348690,0.00014215,99378.0,99377.0,0.007]
[1737972349197,0.00620611,99378.0,99377.0,0.15094]
[1737972349400,0.0001415,99378.0,99377.0,0.15194]
[1737972350113,0.0021415,99378.0,99377.0,0.15194]
[1737972351127,0.0021415,99378.0,99377.0,0.15294621]
[1737972351332,0.0021415,99378.0,99377.0,0.15294613]
[1737972351605,0.0021415,99378.0,99377.0,0.15094]
[1737972352029,0.0031415,99378.0,99377.0,0.15094]
[1737972352384,0.0001415,99378.0,99377.0,0.15094]
[1737972352906,0.0001415,99378.0,99375.0,0.201257]
[1737972353120,0.0001415,99378.0,99377.0,0.15094]
[1737972353285,0.0001415,99378.0,99377.0,0.001]
[1737972353483,0.0001415,99378.0,99377.0,0.002]
[1737972354066,0.1510795,99378.0,99377.0,0.002]
[1737972354371,0.25448192,99378.0,99377.0,0.002]
[1737972354557,0.00619663,99378.0,99377.0,0.002]
[1737972354758,0.0001415,99378.0,99377.0,0.15194]
[1737972354962,0.0001415,99378.0,99377.0,0.15094]
[1737972355122,0.0001415,99378.0,99377.0,0.15194]
[1737972355509,0.0001415,99378.0,99377.0,0.15094]
[1737972355699,0.0001415,99378.0,99377.0,0.15294]
[1737972356126,0.0001415,99378.0,99377.0,0.15094]
[1737972356541,0.0001415,99378.0,99377.0,0.15294]
[1737972356711,0.0001415,99378.0,99377.0,0.15194]
[1737972357757,0.0001415,99378.0,99377.0,0.001]
[1737972358372,0.0001415,99378.0,99353.0,0.15]
[1737972358576,0.00616189,99378.0,99377.0,0.00329715]
[1737972358976,0.00616189,99378.0,99377.0,0.00129715]
[1737972359222,0.25444718,99378.0,99377.0,0.00029715]
[1737972359341,0.25444718,99378.0,99377.0,0.00329715]
[1737972359546,0.25444718,99378.0,99377.0,0.00129715]
[1737972359948,0.25444718,99378.0,99377.0,0.00229715]
[1737972360251,0.27744718,99378.0,99377.0,0.00229715]
[1737972360451,0.35354718,99378.0,99377.0,0.00229715]
[1737972361283,0.35354718,99378.0,99377.0,0.00029715]
[1737972361492,0.71574061,99378.0,99377.0,0.00029715]
[1737972361695,0.71574061,99378.0,99377.0,0.00129715]
[1737972362107,0.71574061,99378.0,99377.0,0.00229715]
[1737972362315,0.92618061,99378.0,99377.0,0.00229715]
[1737972362524,0.173,99377.0,99324.0,0.20136]
[1737972362736,0.150984,99348.0,99318.0,0.09231962]
[1737972362944,0.63352472,99348.0,99320.0,0.151026]
[1737972363153,0.63352472,99348.0,99315.0,0.201378]
[1737972363357,0.63948404,99348.0,99315.0,0.201378]
[1737972363602,0.63948404,99348.0,99320.0,0.151025]
[1737972363774,0.63948404,99348.0,99316.0,0.201377]
[1737972363973,0.63948404,99348.0,99316.0,0.151031]
[1737972364247,0.63948404,99348.0,99347.0,0.001445]